bitfinex-derivatives/quotes_ETHF0:USTF0_20251210
["timestamp","ask_amount","ask_price","bid_price","bid_amount"]
[1765400572632,3.2078,3364.2,3363.9,0.1486]
[1765400572833,1.7871,3364.0,3363.9,0.1486]
[1765400574639,0.00445553,3364.5,3364.4,0.14858]
[1765400575441,0.00445553,3364.5,3363.9,3.2078]
[1765400575946,0.00445553,3364.5,3363.9,3.3564]
[1765400576146,3.21225553,3364.5,3363.9,0.1486]
[1765400576441,0.00445553,3364.5,3363.9,3.2078]
[1765400576636,0.00445553,3364.5,3364.4,0.14858]
[1765400577237,4.99762599,3366.0,3364.4,9.2078]
[1765400577435,4.99762599,3366.0,3365.2,3.2078]
[1765400577640,4.99762599,3366.0,3365.7,0.14852]
[1765400578244,0.00272599,3366.0,3365.9,0.14852]
[1765400580540,2.09422599,3366.0,3365.9,0.14852]
[1765400580837,0.00272599,3366.0,3365.9,0.14852]
[1765400581040,2.09422599,3366.0,3365.5,0.00445553]
[1765400581242,2.0915,3365.0,3364.6,0.14857]
[1765400582241,2.0915,3365.0,3364.7,0.14857]
[1765400582841,3.2078,3365.3,3364.5,0.00445553]
[1765400582842,3.2078,3365.3,3365.0,0.14855]
[1765400583050,3.2078,3365.7,3364.8,3.2078]
[1765400583243,3.2078,3365.3,3365.2,0.14855]
[1765400583442,3.2078,3365.7,3365.2,0.14855]
[1765400584543,2.0915,3365.0,3364.5,0.00445553]
[1765400584746,2.0915,3364.0,3363.8,0.00251871]
[1765400584946,2.0915,3364.0,3363.0,0.14864]
[1765400585149,3.2078,3363.4,3363.0,0.14864]
[1765400585542,3.2078,3363.4,3363.1,0.14864]
[1765400585851,0.00445553,3363.6,3363.3,0.14863]
[1765400586155,2.0915,3363.0,3362.9,0.00445553]
[1765400586547,2.0915,3363.0,3362.9,0.00797718]
[1765400588244,8.0915,3363.0,3362.1,3.2078]
[1765400588444,3.2078,3362.8,3362.1,3.2078]
[1765400588650,40.8,3362.8,3362.1,3.2078]
[1765400589040,44.0078,3362.8,3362.1,3.2078]
[1765400589253,44.0078,3362.8,3362.1,3.21511761]
[1765400589446,44.0078,3362.8,3362.1,3.36379761]
[1765400590155,44.0078,3362.8,3362.1,3.21511761]
[1765400590355,3.2078,3362.8,3362.4,0.14867]
[1765400590555,3.2078,3362.8,3362.1,0.00731761]
[1765400590757,3.2078,3362.2,3361.4,3.2078]
[1765400590955,2.0915,3362.0,3361.1,0.14873]
[1765400591456,3.2078,3361.8,3361.1,0.14873]
[1765400591659,3.21226223,3361.8,3361.7,0.1487]
[1765400591950,0.00446223,3361.8,3361.7,0.1487]
[1765400592355,0.00446223,3361.8,3361.1,0.00783869]
[1765400592654,0.00446223,3361.8,3361.4,3.2078]
[1765400593249,0.00446223,3361.8,3361.7,0.1487]
[1765400594248,0.00446223,3361.8,3361.4,3.2078]
[1765400594852,3.2078,3361.6,3361.1,0.00783869]
[1765400595353,2.0915,3361.0,3360.6,3.2078]
[1765400595554,2.0915,3361.0,3359.7,3.2078]
[1765400595745,3.2078,3360.8,3359.7,3.35659]
[1765400595951,3.2078,3360.8,3359.8,0.14879]
[1765400596553,0.00249514,3360.8,3360.2,3.2078]
[1765400596757,0.00446223,3361.8,3361.2,0.14872]
[1765400596960,0.00446223,3361.8,3361.2,3.2078]
[1765400597155,2.0915,3361.0,3360.5,0.14875]
[1765400597356,2.0915,3361.0,3360.3,3.2078]
[1765400597555,3.2078,3360.9,3360.0,0.00298599]
[1765400597754,3.21122736,3360.9,3360.4,0.14876]
[1765400598455,3.21122736,3360.9,3360.0,0.00298599]
[1765400598861,0.00342736,3360.9,3360.4,3.2078]
[1765400599254,0.00342736,3360.9,3360.8,3.2078]
[1765400599559,0.00342736,3360.9,3360.8,3.35654]
[1765400601556,0.00342736,3360.9,3360.3,3.2078]
[1765400601759,0.00342736,3360.9,3360.3,3.35656]
[1765400601961,0.00342736,3360.9,3360.3,3.2078]
[1765400602362,0.00342736,3360.9,3360.8,0.14874]
[1765400604958,6.00342736,3360.9,3360.1,0.14877]
[1765400605259,6.00342736,3360.9,3359.9,3.2078]
[1765400605260,2.0253,3359.7,3359.5,3.2078]
[1765400605459,2.0253,3359.7,3356.8,10.707]
[1765400605460,2.0253,3359.7,3358.7,0.14883]
[1765400605655,3.2078,3359.4,3358.8,0.14883]
[1765400605860,3.2078,3359.4,3358.9,0.14882]
[1765400606157,15.98003542,3360.6,3358.6,3.45206953]
[1765400606158,3.2078,3360.0,3359.8,0.14879]
[1765400606459,0.00446223,3360.2,3360.1,0.14877]
[1765400606956,3.2078,3361.3,3360.5,0.14875]
[1765400607356,3.21122736,3360.9,3360.5,0.14875]
[1765400607560,3.21122736,3360.9,3359.9,3.2078]
[1765400607760,3.21122736,3360.9,3359.9,3.35658]
[1765400607964,0.00446223,3360.7,3360.1,0.15323223]
[1765400610361,0.00446223,3360.7,3360.2,0.14877]
[1765400610853,0.00446223,3360.7,3360.1,0.00446223]
[1765400611058,3.2078,3360.5,3360.1,0.00446223]
[1765400611259,40.80446223,3360.7,3360.1,0.00446223]
[1765400612164,0.00446223,3360.7,3360.1,0.00446223]
[1765400612367,0.00446223,3360.7,3360.4,3.2078]
[1765400612567,0.00446223,3360.7,3360.6,0.14875]
[1765400613862,0.14876,3360.5,3360.1,0.00446223]
[1765400614066,3.2078,3360.2,3359.1,0.26107]
[1765400614268,3.2078,3359.6,3359.1,0.26107]
[1765400614668,3.2078,3359.6,3359.1,0.11225]
[1765400615065,44.0078,3359.6,3359.1,0.11387439]
[1765400615469,1.9399,3358.8,3358.4,3.2078]
[1765400616078,1.9399,3358.8,3358.4,3.35665]
[1765400616678,0.00446223,3358.9,3358.7,0.14884]
[1765400616874,1.9399,3358.8,3358.7,0.14884]
[1765400617082,1.9399,3358.8,3358.4,3.2078]
[1765400617778,4.02191531,3358.7,3357.3,3.2078]
[1765400617979,3.2078,3358.3,3357.3,3.3567]
[1765400618171,3.21152993,3358.3,3357.3,3.45794955]
[1765400618371,0.00372993,3358.3,3358.2,3.2078]
[1765400618567,0.00446223,3358.9,3358.2,3.2078]
[1765400618771,0.00446223,3358.9,3358.8,3.2078]
[1765400618974,1.9399,3359.7,3359.2,0.1488]
[1765400619477,1.94353045,3359.7,3359.3,0.14879]
[1765400619872,3.2078,3359.5,3359.2,0.00281125]
[1765400620276,1.9399,3358.8,3357.8,0.14886]
[1765400620475,3.2078,3358.4,3357.8,0.14886]
[1765400620780,1.9399,3357.9,3357.8,0.14886]
[1765400621176,1.9399,3357.9,3357.8,0.14977868]
[1765400623178,5.1477,3358.8,3357.8,6.00091868]
[1765400623383,3.2078,3358.8,3358.7,0.14882]
[1765400623586,3.2078,3359.3,3359.1,0.1488]
[1765400623895,3.2078,3359.3,3359.2,0.1488]
[1765400625392,3.2078,3359.3,3358.6,3.35662]
[1765400625888,3.2078,3359.3,3359.0,0.14881]
[1765400626594,3.2078,3359.3,3358.6,3.2078]
[1765400626789,1.9399,3359.0,3358.6,3.2078]
[1765400627295,1.9399,3359.0,3358.7,0.14882]
[1765400627494,1.9399,3359.0,3358.8,0.14882]
[1765400629485,1.9399,3359.0,3358.9,0.14881]
[1765400629690,1.94799268,3359.7,3359.1,0.1488]
[1765400629893,0.81365854,3359.6,3359.1,0.1488]
[1765400630493,0.81365854,3359.6,3359.0,3.2078]
[1765400630695,5.15579268,3359.7,3359.5,0.14878]
[1765400631091,0.81498269,3359.6,3359.5,0.14878]
[1765400632095,0.81498269,3359.6,3359.0,3.2078]
[1765400632096,0.81498269,3359.6,3358.8,0.14881]
[1765400632295,0.81498269,3359.6,3358.6,3.2078]
[1765400632296,0.81498269,3359.6,3358.9,0.14881]
[1765400632699,0.81498269,3359.6,3359.0,0.14881]
[1765400632895,0.81498269,3359.5,3359.0,0.14881]
[1765400633097,1.9399,3358.8,3358.6,3.2078]
[1765400633398,1.9399,3358.8,3358.4,0.14883]
[1765400633802,0.81677144,3358.7,3358.4,0.14883]
[1765400634104,0.81677144,3358.7,3358.5,0.14883]
[1765400635099,0.81677144,3358.7,3358.6,0.14882]
[1765400635298,3.2078,3359.3,3358.6,3.2078]
[1765400635499,5.15579268,3359.7,3359.4,0.14879]
[1765400635706,0.8178469,3359.6,3359.4,0.14879]
[1765400636304,1.6609,3358.8,3358.7,0.14882]
[1765400637398,1.6609,3358.8,3358.2,3.2078]
[1765400637596,0.81838652,3358.7,3358.0,0.14885]
[1765400637996,0.81838652,3358.7,3358.1,0.14885]
[1765400638398,1.6609,3358.8,3358.3,0.14884]
[1765400638599,1.6609,3358.8,3357.8,3.20871868]
[1765400638804,1.6609,3358.8,3357.8,3.35757868]
[1765400639004,1.791,3357.9,3357.8,3.35757868]
[1765400639909,3.2078,3358.5,3358.0,0.14885]
[1765400640104,3.2078,3358.5,3358.2,0.14884]
[1765400640409,3.2078,3358.5,3358.4,0.14883]
[1765400641001,1.791,3357.9,3357.8,0.00091868]
[1765400641197,1.791,3357.0,3356.7,3.2078]
[1765400641406,3.2078,3356.8,3355.6,0.14895]
[1765400641604,1.791,3356.1,3355.3,3.44844492]
[1765400641809,1.791,3356.1,3355.1,0.14898]
[1765400642105,1.791,3355.2,3355.1,0.15130664]
[1765400642909,1.791,3355.2,3355.1,0.00232664]
[1765400643599,1.791,3355.2,3354.3,0.14901]
[1765400643802,3.2078,3355.0,3354.3,0.14901]
[1765400644508,3.2078,3355.0,3354.6,0.149]
[1765400645008,1.791,3354.3,3354.2,3.2078]
[1765400645313,1.791,3354.3,3353.8,0.14904]
[1765400645607,1.791,3354.3,3353.9,0.14903]
[1765400646001,1.791,3353.4,3353.0,3.2078]
[1765400646201,5.00228114,3353.4,3352.6,3.2078]
[1765400646401,1.791,3352.5,3352.0,3.2078]
[1765400646613,1.791,3352.5,3352.0,3.45833832]
[1765400646911,1.791,3352.5,3351.6,0.14913]
[1765400646912,1.791,3352.5,3351.7,0.39631081]
[1765400647108,1.791,3352.5,3351.6,3.2078]
[1765400647308,1.791,3352.5,3350.7,7.1886]
[1765400647309,1.791,3352.5,3352.1,0.14911]
[1765400649610,3.2078,3352.6,3352.0,3.2078]
[1765400649810,3.2078,3353.1,3352.0,3.2078]
[1765400650011,3.2078,3352.7,3352.0,3.2078]
[1765400650203,3.2078,3352.3,3351.6,3.2078]
[1765400650708,3.2078,3351.9,3351.5,0.14914]
[1765400650906,1.791,3351.6,3351.1,3.2078]
[1765400651111,3.2078,3351.5,3350.7,3.2078]
[1765400652613,3.2078,3351.5,3351.0,0.14916]
[1765400654717,3.2078,3351.1,3350.2,3.2078]
[1765400654916,3.2078,3351.1,3350.2,3.45261272]
[1765400655113,3.2078,3351.1,3350.2,3.2078]
[1765400655418,1.5609,3350.7,3350.6,0.14918]
[1765400655613,4.77235393,3350.7,3350.0,0.00244525]
[1765400655809,3.2078,3350.2,3350.0,0.00244525]
[1765400656717,3.2078,3350.2,3350.0,4.525e-05]
[1765400656911,3.2078,3350.6,3350.0,4.525e-05]
[1765400658014,3.2078,3350.6,3350.1,0.1492]
[1765400658212,3.2078,3350.6,3350.2,0.1492]
[1765400658522,3.2078,3350.6,3350.4,0.14919]
[1765400658914,3.2078,3350.6,3350.0,4.525e-05]
[1765400659115,0.00365393,3350.7,3350.6,0.14918]
[1765400659616,3.2078,3351.1,3351.0,0.14916]
[1765400659822,3.14827945,3351.1,3351.0,0.14916]
[1765400660822,4.9988,3351.6,3351.1,0.14915]
[1765400661214,1.79393282,3351.6,3351.0,3.2078]
[1765400661618,3.2078,3351.5,3350.7,0.14917]
[1765400662014,3.2078,3351.5,3351.0,0.14916]
[1765400662215,1.79393282,3351.6,3351.0,0.14916]
[1765400662425,3.2078,3351.4,3351.0,0.14916]
[1765400662926,1.79393282,3351.6,3351.0,0.14916]
[1765400663127,3.2078,3351.4,3351.0,0.14916]
[1765400663328,1.79393282,3351.6,3351.0,3.2078]
[1765400663625,1.79393282,3351.6,3351.5,0.14914]
[1765400664420,1.79393282,3351.6,3350.8,0.14917]
[1765400664728,3.2078,3351.3,3350.4,3.2078]
[1765400664926,1.5609,3350.7,3350.4,3.2078]
[1765400665314,3.2078,3351.3,3350.4,3.2078]
[1765400665820,1.79393282,3351.6,3350.0,4.525e-05]
[1765400665821,0.00293282,3351.6,3351.5,0.14914]
[1765400666321,1.56383282,3351.6,3351.5,0.14914]
[1765400666520,1.56383282,3351.6,3350.9,3.35696]
[1765400666715,1.56383282,3351.6,3350.9,3.2078]
[1765400666922,0.00293282,3351.6,3351.5,0.14914]
[1765400667118,1.56383282,3351.6,3351.5,0.14914]
[1765400667822,1.56383282,3351.6,3350.9,3.2078]
[1765400668119,1.56383282,3351.6,3350.9,3.35697]
[1765400668427,1.56383282,3351.6,3350.9,3.2078]
[1765400668724,1.56383282,3351.6,3351.2,0.14915]
[1765400670625,1.56383282,3351.6,3350.9,3.07764611]
[1765400670824,1.6329,3350.7,3350.5,0.14918]
[1765400671227,1.6329,3350.7,3350.0,4.525e-05]
[1765400671421,1.6329,3349.8,3349.1,0.14925]
[1765400671629,3.2078,3349.6,3349.1,0.14925]
[1765400672134,3.2078,3349.6,3349.1,3.2078]
[1765400672323,3.2078,3349.6,3349.5,0.14923]
[1765400672530,3.2078,3349.6,3348.7,3.35706]
[1765400672826,3.2078,3349.6,3349.2,0.14924]
[1765400673022,3.2078,3349.6,3349.3,0.14924]
[1765400673427,0.77794303,3349.5,3349.3,0.14924]
[1765400673731,3.2078,3349.6,3349.3,0.14924]
[1765400674333,3.2078,3349.6,3348.6,3.2078]
[1765400674626,1.6329,3348.9,3348.6,3.2078]
[1765400674834,3.2078,3348.8,3348.5,0.14927]
[1765400675126,0.00211013,3348.9,3348.8,0.14926]
[1765400675332,1.51211013,3348.9,3348.8,0.14926]
[1765400675538,1.51211013,3348.9,3348.0,0.14929]
[1765400675727,3.2078,3348.5,3348.0,0.14929]
[1765400675929,3.2078,3348.5,3348.4,0.14928]
[1765400676128,1.51211013,3348.9,3347.9,3.2078]
[1765400676431,0.77504157,3348.8,3348.6,0.14927]
[1765400676631,1.51,3348.0,3347.9,3.2078]
[1765400676834,2.28504157,3348.0,3347.5,3.2078]
[1765400677029,0.77504157,3347.9,3347.5,3.2078]
[1765400677535,1.51,3348.0,3347.6,0.14931]
[1765400677732,1.51,3348.0,3347.9,0.1493]
[1765400679640,0.00447654,3348.1,3348.0,0.1493]
[1765400679830,0.00447654,3348.1,3348.0,3.3571]
[1765400680937,0.00211013,3348.9,3348.8,0.14926]
[1765400681339,0.00211013,3348.9,3348.8,9.35706]
[1765400681535,4.47084866,3350.4,3349.7,0.14922]
[1765400681838,0.00447654,3350.1,3349.7,0.14922]
[1765400682037,0.00447654,3350.1,3350.0,0.14921]
[1765400682234,0.00447654,3350.1,3350.0,3.35701]
[1765400682427,0.00775725,3350.1,3350.0,0.3956038]
[1765400682833,3.2078,3350.8,3350.7,0.14918]
[1765400683233,3.2078,3350.8,3350.4,3.2078]
[1765400683435,1.51,3350.7,3350.1,3.2078]
[1765400683833,3.2078,3351.2,3350.7,0.14918]
[1765400684034,3.21080289,3351.2,3350.7,0.14918]
[1765400684636,3.21080289,3351.2,3350.9,0.14917]
[1765400685745,3.21080289,3351.2,3351.0,0.14916]
[1765400686242,3.21080289,3351.2,3351.1,0.14916]
[1765400687736,0.00300289,3351.2,3351.1,0.14916]
[1765400688840,1.51300289,3351.2,3351.1,0.14916]
[1765400689737,4.72080289,3351.2,3351.1,0.14916]
[1765400689938,4.72080289,3351.2,3350.4,3.35699]
[1765400690546,4.72080289,3351.2,3350.5,0.14918]
[1765400691239,1.51300289,3351.2,3351.1,0.14916]
[1765400691944,1.51300289,3351.2,3351.1,3.35696]
[1765400692147,1.51300289,3351.2,3351.1,0.14916]
[1765400695441,1.51300289,3351.2,3350.5,0.14918]
[1765400695648,3.2078,3351.1,3350.5,0.14918]
[1765400696046,1.51,3350.4,3350.3,3.2078]
[1765400696250,4.7178,3350.4,3350.0,0.00287287]
[1765400696647,4.7178,3350.4,3349.8,3.2078]
[1765400696945,1.51,3349.6,3349.3,3.2078]
[1765400697144,40.8,3350.3,3349.3,3.35704]
[1765400697448,4.7178,3349.6,3349.3,0.14924]
[1765400697750,4.7178,3349.6,3348.6,0.14927]
[1765400698043,3.2078,3348.7,3348.6,0.14927]
[1765400698749,3.210252,3348.7,3348.3,0.00447654]
[1765400700052,1.4917,3348.0,3346.5,12.8968]
[1765400700344,3.2078,3347.2,3346.3,0.24927709]
[1765400700551,2.73299107,3347.6,3347.5,0.14932]
[1765400700745,0.002452,3348.7,3348.4,0.14928]
[1765400701051,0.002452,3348.7,3348.6,0.14927]
[1765400701545,0.00447654,3348.9,3348.8,0.14926]
[1765400701750,0.14913,3351.7,3348.9,1.542]
[1765400702247,0.14913,3351.7,3348.1,0.14929]
[1765400702248,0.14921,3350.0,3348.1,0.14929]
[1765400702551,0.14921,3350.0,3346.3,12.20976239]
[1765400702552,1.4917,3347.1,3345.3,1.672]
[1765400702749,0.00447654,3346.5,3346.0,0.14938]
[1765400702950,0.00447654,3346.5,3346.4,0.14937]
[1765400703846,0.00274325,3347.1,3347.0,0.14934]
[1765400704049,0.00274325,3347.1,3347.0,6.14934]
[1765400705752,6.54e-06,3347.4,3347.3,0.14933]
[1765400706250,1.4917,3349.8,3347.3,6.0]
[1765400706446,1.4917,3349.8,3348.7,0.14926]
[1765400706750,1.49457402,3349.8,3348.7,0.0032956]
[1765400706948,0.00287402,3349.8,3349.3,0.14923]
[1765400707245,1.49457402,3349.8,3348.7,0.0032956]
[1765400707450,1.49457402,3349.8,3349.2,0.00447654]
[1765400707650,1.49457402,3349.8,3349.4,0.14923]
[1765400707852,1.49457402,3349.8,3349.2,0.00447654]
[1765400708443,1.49457402,3349.8,3348.7,0.0032956]
[1765400708953,1.4917,3349.0,3348.7,0.0032956]
[1765400709146,1.4917,3349.0,3347.3,0.14933]
[1765400709457,1.4917,3349.0,3347.8,0.00447654]
[1765400710352,1.4917,3349.0,3347.8,0.00637619]
[1765400710550,1.5442,3348.0,3347.8,0.00637619]
[1765400710758,4.752,3348.0,3346.8,0.14935]
[1765400711046,4.752,3348.0,3345.9,1.08177114]
[1765400711047,3.2078,3346.9,3346.1,0.14938]
[1765400711252,3.2078,3346.4,3346.1,0.14938]
[1765400711450,3.2078,3346.4,3346.3,0.14937]
[1765400711653,3.21007065,3346.4,3346.3,0.14937]
[1765400711948,0.00227065,3346.4,3346.3,0.14937]
[1765400712148,0.00227065,3346.4,3346.3,6.14937]
[1765400712343,0.00227065,3346.4,3346.3,0.14937]
[1765400712554,3.21007065,3346.4,3346.3,0.14937]
[1765400713547,3.21007065,3346.4,3346.0,0.00447654]
[1765400713751,2.89245681,3345.8,3343.9,0.23880251]
[1765400713946,3.2078,3344.5,3343.7,3.2078]
[1765400714250,1.4617,3344.0,3342.2,3.2078]
[1765400714450,3.2078,3342.5,3341.4,3.2078]
[1765400714657,3.2078,3341.6,3341.0,0.14961]
[1765400714850,3.2078,3341.1,3340.2,0.33971191]
[1765400715045,3.2078,3340.7,3340.3,0.13]
[1765400715253,0.00239301,3341.1,3340.6,0.14963]
[1765400715456,0.00239301,3341.1,3341.0,0.14961]
[1765400715653,0.00239301,3341.1,3340.4,3.2078]
[1765400715860,3.2078,3340.7,3340.3,0.00225934]
[1765400716155,0.00239301,3341.1,3340.3,0.00225934]
[1765400716156,3.2078,3340.6,3340.3,0.00225934]
[1765400716458,12.10025681,3340.6,3339.1,0.14969]
[1765400716645,0.00449034,3340.2,3339.5,0.14967]
[1765400716850,0.00449034,3340.2,3338.4,0.20183114]
[1765400717050,0.00449034,3340.2,3338.1,0.13]
[1765400717247,0.00449034,3340.2,3337.6,1.296]
[1765400717248,2.982,3340.0,3337.6,0.14976]
[1765400717451,2.89245681,3339.2,3337.7,0.14975]
[1765400717651,0.00449034,3338.8,3335.3,2.41618]
[1765400717850,1.5442,3338.5,3336.0,0.14983]
[1765400718050,2.89245681,3337.7,3334.9,0.14988]
[1765400718250,0.00449034,3336.6,3334.5,0.1499]
[1765400718454,0.00449034,3336.6,3333.6,5.26396064]
[1765400718646,0.00449034,3336.6,3334.8,1.5605]
[1765400718846,1.5442,3337.2,3334.8,1.5605]
[1765400718847,2.89245681,3337.8,3334.8,1.5605]
[1765400719160,2.89245681,3337.7,3335.9,0.14984]
[1765400719456,2.89245681,3337.3,3335.4,0.14986]
[1765400719761,2.89245681,3338.9,3336.5,0.14981]
[1765400719966,0.00345912,3338.5,3337.2,0.14978]
[1765400720259,42.3442,3338.4,3336.5,0.00237998]
[1765400721159,0.00449762,3337.8,3336.5,0.00237998]
[1765400721550,0.00345912,3338.5,3336.6,3.13318944]
[1765400721760,0.00345912,3338.5,3337.4,0.14977]
[1765400721953,0.00345912,3338.5,3336.5,0.00237998]
[1765400721954,1.5442,3338.4,3336.5,0.00237998]
[1765400722259,1.5442,3338.4,3336.6,0.14981]
[1765400722455,0.00449762,3337.8,3336.5,0.00237998]
[1765400722947,0.00345912,3338.5,3337.7,0.14976]
[1765400723264,0.00345912,3338.5,3336.6,9.11961446]
[1765400723265,6.00799303,3340.6,3338.5,0.14972]
[1765400723558,40.8,3340.2,3338.6,0.14972]
[1765400723759,6.00799303,3340.6,3338.6,0.14972]
[1765400723949,1.0546,3340.7,3338.4,1.5605]
[1765400724151,0.00449762,3339.8,3339.4,0.14968]
[1765400724352,0.00449762,3339.8,3339.4,0.15232762]
[1765400724952,0.00449762,3339.8,3339.7,0.14967]
[1765400725152,0.00246027,3340.7,3340.1,0.14965]
[1765400725454,0.00246027,3340.7,3339.6,1.5605]
[1765400725957,0.00246027,3340.7,3339.4,0.00264762]
[1765400726152,0.00449048,3340.4,3339.4,0.00264762]
[1765400726653,0.00449048,3340.4,3339.8,0.14966]
[1765400726957,0.00449048,3340.4,3340.3,0.14964]
[1765400727153,0.00246027,3340.7,3339.4,0.00264762]
[1765400727154,2.89245681,3342.7,3340.9,0.14961]
[1765400727358,2.89245681,3342.7,3341.0,0.14961]
[1765400727552,3.61775681,3342.0,3340.0,0.14965]
[1765400727959,1.69371,3343.2,3339.6,1.5605]
[1765400728158,0.00287106,3341.7,3341.1,0.00449048]
[1765400728656,6.00287106,3341.7,3341.1,0.00449048]
[1765400728859,0.00287106,3341.7,3341.1,0.00449048]
[1765400730663,3.2078,3341.2,3341.1,0.00449048]
[1765400731765,0.00287106,3341.7,3341.5,0.14958]
[1765400732460,0.00287106,3341.7,3341.6,0.14958]
[1765400732860,0.00287106,3341.7,3341.1,0.00449048]
[1765400733161,3.2078,3341.5,3341.1,0.00449048]
[1765400733659,0.00287106,3341.7,3341.1,0.00449048]
[1765400733860,0.00287106,3341.7,3341.4,3.2078]
[1765400734055,0.00287106,3341.7,3341.6,0.14958]
[1765400734359,0.00287106,3341.7,3341.1,0.00449048]
[1765400734763,3.2078,3341.2,3341.1,0.00449048]
[1765400735163,9.2078,3341.2,3339.5,3.2078]
[1765400735361,0.00287106,3341.7,3339.4,0.00264762]
[1765400735362,3.2078,3340.0,3339.4,0.15232762]
[1765400735556,3.21147171,3340.0,3339.4,0.00264762]
[1765400735771,0.00367171,3340.0,3339.9,0.14966]
[1765400736259,3.21147171,3340.0,3339.6,0.00449048]
[1765400736764,0.00367171,3340.0,3339.8,0.14966]
[1765400738660,0.00367171,3340.0,3339.6,0.00449048]
[1765400738661,0.00367171,3340.0,3339.9,0.14966]
[1765400739169,3.2078,3340.5,3339.9,6.0]
[1765400739365,3.2078,3340.5,3339.7,3.2078]
[1765400739770,3.2078,3340.5,3339.6,0.00449048]
[1765400740065,3.2078,3340.1,3339.6,0.15416048]
[1765400740361,3.2078,3339.7,3339.6,0.00449048]
[1765400741757,0.00449048,3340.0,3339.6,0.15416048]
[1765400742162,0.00449048,3340.0,3339.7,0.14967]
[1765400742364,3.2078,3339.8,3339.6,0.00449048]
[1765400743570,1.6752,3339.6,3338.9,0.1497]
[1765400743763,3.2078,3339.0,3338.9,0.1497]
[1765400743958,3.2078,3339.8,3338.7,3.2078]
[1765400744569,0.00449048,3340.0,3338.7,3.2078]
[1765400744570,0.00449048,3340.0,3339.9,0.14966]
[1765400745466,0.00449048,3340.0,3339.0,3.35749]
[1765400745768,3.2078,3339.2,3339.0,0.14969]
[1765400746073,3.2078,3339.2,3338.3,3.35753]
[1765400746265,3.2078,3338.7,3337.8,3.2078]
[1765400746465,3.2078,3339.6,3338.8,0.14971]
[1765400746768,3.2078,3339.2,3338.2,3.2078]
[1765400746972,3.2078,3338.8,3338.0,0.14974]
[1765400747174,3.2078,3339.0,3338.1,0.00449048]
[1765400747380,1.6752,3338.5,3338.1,0.00449048]
[1765400747582,1.6752,3338.5,3338.1,0.15423048]
[1765400748675,3.2078,3338.2,3338.0,0.00379243]
[1765400748872,0.7657123,3338.1,3337.2,0.14978]
[1765400749175,1.6752,3338.5,3337.3,0.14977]
[1765400749374,0.76673973,3338.4,3337.1,3.2078]
[1765400749569,1.6752,3338.5,3338.0,0.14974]
[1765400749771,1.67859889,3338.5,3338.3,0.14973]
[1765400749972,3.2078,3338.7,3338.0,3.20862379]
[1765400750179,3.2078,3339.1,3338.6,3.35752]
[1765400750374,3.2078,3339.3,3338.6,0.14972]
[1765400750573,3.2078,3339.3,3338.7,3.35751]
[1765400750779,3.2078,3339.4,3338.7,0.14971]
[1765400750978,3.2153916,3339.4,3338.7,0.14971]
[1765400751680,1.6752,3338.5,3338.1,3.2078]
[1765400751985,3.2078,3338.3,3337.1,3.35758]
[1765400752281,3.2078,3337.5,3337.1,3.35758]
[1765400752478,3.2078,3337.5,3337.1,3.2078]
[1765400752679,1.6752,3337.4,3337.1,3.2078]
[1765400752880,1.6752,3337.4,3337.1,3.21076318]
[1765400753082,1.6752,3337.4,3337.1,0.00296318]
[1765400753782,0.00449048,3337.6,3337.3,3.35757]
[1765400754085,0.00449048,3337.6,3337.5,0.14977]
[1765400754288,1.6752,3337.4,3337.3,3.2078]
[1765400754476,1.6752,3337.4,3337.1,0.00296318]
[1765400754884,0.00449048,3337.6,3337.3,0.14977]
[1765400755284,1.6752,3337.4,3337.1,0.00296318]
[1765400755788,3.21229048,3337.6,3337.1,0.00296318]
[1765400755982,0.00449048,3337.6,3337.4,0.14977]
[1765400756181,0.00449048,3337.6,3337.1,3.21076318]
[1765400756482,40.80449048,3337.6,3337.1,0.00296318]
[1765400757094,4.883,3337.4,3337.1,0.00296318]
[1765400757686,0.00449048,3337.6,3337.1,3.21076318]
[1765400757879,0.00449048,3337.6,3337.5,3.35757]
[1765400758478,0.00449048,3337.6,3337.5,0.14977]
[1765400758987,0.00449048,3337.6,3337.1,3.21076318]
[1765400759186,0.00449048,3337.6,3337.3,0.14977]
[1765400759388,0.00449048,3337.6,3337.5,3.2078]
[1765400759789,0.00449048,3337.6,3337.5,0.14977]
[1765400760593,3.2078,3338.1,3338.0,0.14974]
[1765400760789,1.52381928,3339.4,3338.4,0.14973]
[1765400760790,1.5519,3339.0,3338.4,0.14973]
[1765400760985,1.5519,3339.0,3337.9,3.2078]
[1765400761186,1.5519,3338.0,3337.3,0.14977]
[1765400761384,1.5519,3338.0,3337.4,0.14977]
[1765400761587,0.00449048,3338.0,3337.9,0.14975]
[1765400761788,0.00449048,3338.0,3337.9,3.35755]
[1765400762091,3.2078,3338.9,3337.9,0.14975]
[1765400762281,3.2078,3339.3,3338.9,0.1497]
[1765400762483,0.00310112,3339.4,3338.7,3.2078]
[1765400762693,3.2078,3340.6,3340.2,0.14964]
[1765400763190,1.67969048,3340.7,3340.4,0.14963]
[1765400763491,0.00449048,3340.7,3340.6,0.14963]
[1765400763687,0.00449048,3340.7,3340.6,0.00371386]
[1765400763688,1.55970012,3340.7,3340.6,0.00371386]
[1765400764188,0.00780012,3340.7,3340.6,0.00371386]
[1765400764395,0.00780012,3340.7,3340.6,0.15334386]
[1765400764585,0.00780012,3340.7,3340.6,3.36114386]
[1765400765287,1.2e-07,3340.7,3340.6,3.36114386]
[1765400767197,1.5519,3342.0,3340.8,0.14962]
[1765400767389,1.5519,3342.0,3341.5,3.2078]
[1765400767591,1.5519,3342.0,3340.8,3.35742]
[1765400767793,1.5519,3342.0,3341.2,3.2078]
[1765400768292,1.5519,3342.0,3341.6,3.2078]
[1765400768293,0.00287106,3341.9,3341.6,3.2078]
[1765400769393,0.00287106,3341.9,3341.7,0.14957]
[1765400769594,3.2078,3342.5,3341.8,0.14957]
[1765400769789,3.2078,3342.5,3342.0,3.2078]
[1765400770501,1.4613,3342.0,3341.9,0.00449048]